fUST/lending_fUST_20260627
["ID","MTS","AMOUNT","RATE_DAILY","PERIOD"]
[426533219,1782555038000,-500.0,0.00012796,2]
[426533215,1782555038000,-500.0,0.00012796,2]
[426533211,1782555038000,-500.0,0.00012796,2]
[426533213,1782555038000,-500.0,0.00012796,2]
[426533261,1782555039000,-500.0,0.00012796,2]
[426533269,1782555039000,-500.0,0.00012796,2]
[426533267,1782555039000,-500.0,0.00012796,2]
[426533264,1782555039000,-500.0,0.00012796,2]
[426533263,1782555039000,-500.0,0.00012796,2]
[426533250,1782555039000,-500.0,0.00012796,2]
[426533262,1782555039000,-500.0,0.00012796,2]
[426533260,1782555039000,-500.0,0.00012796,2]
[426533259,1782555039000,-500.0,0.00012796,2]
[426533266,1782555039000,-500.0,0.00012796,2]
[426533253,1782555039000,-500.0,0.00012796,2]
[426533265,1782555039000,-500.0,0.00012796,2]
[426533271,1782555039000,-500.0,0.00012796,2]
[426533276,1782555039000,-500.0,0.00012796,2]
[426533270,1782555039000,-500.0,0.00012796,2]
[426533272,1782555039000,-500.0,0.00012796,2]
[426533275,1782555039000,-500.0,0.00012796,2]
[426533273,1782555039000,-500.0,0.00012796,2]
[426533274,1782555039000,-500.0,0.00012796,2]
[426533278,1782555039000,-500.0,0.00012796,2]
[426533277,1782555039000,-500.0,0.00012796,2]
[426533280,1782555039000,-500.0,0.00012796,2]
[426533279,1782555039000,-500.0,0.00012796,2]
[426533282,1782555039000,-500.0,0.00012796,2]
[426533281,1782555039000,-269.30467424,0.00012796,2]
[426533284,1782555039000,-500.0,0.00012796,2]
[426533254,1782555039000,-500.0,0.00012796,2]
[426533268,1782555039000,-500.0,0.00012796,2]
[426533257,1782555039000,-500.0,0.00012796,2]
[426533233,1782555039000,-500.0,0.00012796,2]
[426533251,1782555039000,-500.0,0.00012796,2]
[426533226,1782555039000,-500.0,0.00012796,2]
[426533227,1782555039000,-500.0,0.00012796,2]
[426533230,1782555039000,-500.0,0.00012796,2]
[426533225,1782555039000,-402.76206619,0.00012796,2]
[426533229,1782555039000,-500.0,0.00012796,2]
[426533228,1782555039000,-500.0,0.00012796,2]
[426533231,1782555039000,-500.0,0.00012796,2]
[426533286,1782555039000,-500.0,0.00012796,2]
[426533232,1782555039000,-500.0,0.00012796,2]
[426533234,1782555039000,-500.0,0.00012796,2]
[426533235,1782555039000,-500.0,0.00012796,2]
[426533236,1782555039000,-500.0,0.00012796,2]
[426533238,1782555039000,-500.0,0.00012796,2]
[426533256,1782555039000,-500.0,0.00012796,2]
[426533241,1782555039000,-500.0,0.00012796,2]
[426533237,1782555039000,-500.0,0.00012796,2]
[426533242,1782555039000,-500.0,0.00012796,2]
[426533245,1782555039000,-500.0,0.00012796,2]
[426533240,1782555039000,-500.0,0.00012796,2]
[426533243,1782555039000,-500.0,0.00012796,2]
[426533244,1782555039000,-500.0,0.00012796,2]
[426533246,1782555039000,-500.0,0.00012796,2]
[426533247,1782555039000,-500.0,0.00012796,2]
[426533248,1782555039000,-500.0,0.00012796,2]
[426533249,1782555039000,-500.0,0.00012796,2]
[426533255,1782555039000,-500.0,0.00012796,2]
[426533258,1782555039000,-327.93241865,0.00012796,2]
[426533252,1782555039000,-500.0,0.00012796,2]
[426533239,1782555039000,-500.0,0.00012796,2]
[426533285,1782555039000,-500.0,0.00012796,2]
[426533283,1782555039000,-500.0,0.00012796,2]
[426533288,1782555039000,-500.0,0.00012796,2]
[426533333,1782555039000,-488.43113018,0.0002608,2]
[426533323,1782555039000,-500.0,0.00018176,2]
[426533322,1782555039000,-500.0,0.00018076,2]
[426533326,1782555039000,-500.0,0.00018282,2]
[426533324,1782555039000,-500.0,0.00018176,2]
[426533328,1782555039000,-245.003432,0.00021334,2]
[426533325,1782555039000,-500.0,0.00018176,2]
[426533331,1782555039000,-152.63472818,0.0002608,2]
[426533327,1782555039000,-500.0,0.00018282,2]
[426533332,1782555039000,-274.74251072,0.0002608,2]
[426533330,1782555039000,-6673.3726095,0.00024743,2]
[426533329,1782555039000,-151.1256635,0.00024173,2]
[426533334,1782555039000,-762.41046726,0.0002608,2]
[426533321,1782555039000,-500.0,0.00017759,2]
[426533336,1782555039000,-214.954,0.00028439,2]
[426533339,1782555039000,-819.47,0.0002849,3]
[426533338,1782555039000,-273.14,0.0002849,3]
[426533341,1782555039000,-500.0,0.00028499,2]
[426533337,1782555039000,-546.28,0.0002849,3]
[426533340,1782555039000,-500.0,0.00028499,2]
[426533335,1782555039000,-207.34,0.000281,2]
[426533342,1782555039000,-512.79571744,0.00028499,2]
[426533343,1782555039000,-152899.17653271,0.000285,2]
[426533345,1782555039000,-202.39074594,0.00028898,2]
[426533344,1782555039000,-319.10491606,0.00028599,2]
[426533287,1782555039000,-500.0,0.00012796,2]
[426533349,1782555039000,-361.92766935,0.00028898,2]
[426533348,1782555039000,-201.07092741,0.00028898,2]
[426533346,1782555039000,-364.3033427,0.00028898,2]
[426533320,1782555039000,-500.0,0.00016438,2]
[426533347,1782555039000,-647.65038701,0.00028898,2]
[426533319,1782555039000,-415.165296,0.00016268,2]
[426533318,1782555039000,-415.165296,0.00015702,2]
[426533295,1782555039000,-500.0,0.00012796,2]
[426533290,1782555039000,-500.0,0.00012796,2]
[426533289,1782555039000,-500.0,0.00012796,2]
[426533293,1782555039000,-500.0,0.00012796,2]
[426533291,1782555039000,-500.0,0.00012796,2]
[426533292,1782555039000,-500.0,0.00012796,2]
[426533296,1782555039000,-500.0,0.00012796,2]
[426533308,1782555039000,-415.165296,0.00013439,2]
[426533297,1782555039000,-500.0,0.00012796,2]
[426533298,1782555039000,-500.0,0.00012796,2]
[426533299,1782555039000,-500.0,0.00012796,2]
[426533306,1782555039000,-500.0,0.00012796,2]
[426533301,1782555039000,-500.0,0.00012796,2]
[426533294,1782555039000,-500.0,0.00012796,2]
[426533302,1782555039000,-500.0,0.00012796,2]
[426533303,1782555039000,-500.0,0.00012796,2]
[426533316,1782555039000,-415.165296,0.00015136,2]
[426533314,1782555039000,-415.165296,0.00014571,2]
[426533312,1782555039000,-160.0,0.00013974,2]
[426533310,1782555039000,-400.0,0.00013698,2]
[426533311,1782555039000,-1420.52009,0.00013886,2]
[426533315,1782555039000,-165.3668012,0.00015068,2]
[426533309,1782555039000,-500.0,0.00013698,2]
[426533300,1782555039000,-500.0,0.00012796,2]
[426533313,1782555039000,-415.165296,0.00014005,2]
[426533317,1782555039000,-250.0,0.00015167,2]
[426533305,1782555039000,-500.0,0.00012796,2]
[426533307,1782555039000,-3313.28775876,0.00013,2]
[426533304,1782555039000,-500.0,0.00012796,2]
[426533374,1782555040000,-395.2436381,0.00032055,2]
[426533386,1782555040000,-457.21,0.000336,30]
[426533379,1782555040000,-155.999999,0.00033,30]
[426533373,1782555040000,-327.3587986,0.00032055,2]
[426533377,1782555040000,-210.0,0.00032137,7]
[426533376,1782555040000,-300.0,0.0003211,7]
[426533385,1782555040000,-337.7291767,0.00033256,2]
[426533387,1782555040000,-300.0,0.00033807,32]
[426533389,1782555040000,-1533.04632686,0.00034116,2]
[426533393,1782555040000,-197.89778764,0.00034428,2]
[426533390,1782555040000,-1232.0,0.000342,2]
[426533381,1782555040000,-4000.0,0.00033,120]
[426533398,1782555040000,-156.78826481,0.00034433,2]
[426533392,1782555040000,-179.44029494,0.00034276,2]
[426533391,1782555040000,-355.0,0.00034246,2]
[426533395,1782555040000,-161.85541824,0.00034432,2]
[426533394,1782555040000,-158.24693098,0.00034428,2]
[426533396,1782555040000,-154.40288423,0.00034433,2]
[426533408,1782555040000,-170.4486429,0.00034433,2]
[426533403,1782555040000,-175.62648531,0.00034433,2]
[426533400,1782555040000,-150.03526283,0.00034433,2]
[426533402,1782555040000,-169.95369804,0.00034433,2]
[426533404,1782555040000,-166.25596907,0.00034433,2]
[426533399,1782555040000,-198.10701048,0.00034433,2]
[426533378,1782555040000,-202.92796,0.000324,2]
[426533388,1782555040000,-168.95546066,0.00034116,2]
[426533375,1782555040000,-327.3587983,0.00032055,2]
[426533363,1782555040000,-160.0,0.00031333,2]
[426533380,1782555040000,-300.0,0.00033,120]
[426533359,1782555040000,-732765.21361279,0.0003,2]
[426533351,1782555040000,-1004.34928244,0.00028898,2]
[426533350,1782555040000,-643.42696773,0.00028898,2]
[426533352,1782555040000,-1010.94177598,0.00028898,2]
[426533353,1782555040000,-200.0,0.000291,2]
[426533357,1782555040000,-580.61,0.000299,2]
[426533356,1782555040000,-546.28,0.0002986,3]
[426533354,1782555040000,-176.22533615,0.000298,2]
[426533358,1782555040000,-199.107018,0.0002999,10]
[426533360,1782555040000,-300.0,0.0003,120]
[426533355,1782555040000,-1092.56,0.0002986,3]
[426533361,1782555040000,-29999.99999901,0.0003,2]
[426533364,1782555040000,-160.0,0.00031333,2]
[426533362,1782555040000,-166.07,0.00031316,10]
[426533369,1782555040000,-329.33769324,0.00031703,2]
[426533368,1782555040000,-5000.0,0.0003168,2]
[426533365,1782555040000,-160.0,0.00031333,2]
[426533367,1782555040000,-431.0,0.0003168,2]
[426533366,1782555040000,-341.2289883,0.00031469,2]
[426533371,1782555040000,-152.24673316,0.00032,120]
[426533372,1782555040000,-327.3587983,0.00032055,2]
[426533370,1782555040000,-300.0,0.00031781,21]
[426533397,1782555040000,-175.65570555,0.00034433,2]
[426533382,1782555040000,-712.7201,0.000332,30]
[426533383,1782555040000,-193.9501,0.000332,20]
[426533384,1782555040000,-284.78279724,0.000332,117]
[426533401,1782555040000,-156.3132763,0.00034433,2]
[426533446,1782555040000,-171.39,0.0003494,7]
[426533406,1782555040000,-163.87743987,0.00034433,2]
[426533437,1782555040000,-648.30902114,0.00034452,2]
[426533443,1782555040000,-177.14767491,0.00034456,2]
[426533442,1782555040000,-156.51182806,0.00034456,2]
[426533445,1782555040000,-355.0,0.00034794,4]
[426533435,1782555040000,-191.08533429,0.00034437,2]
[426533444,1782555040000,-355.0,0.0003452,3]
[426533440,1782555040000,-322.83603599,0.00034452,2]
[426533441,1782555040000,-154.19538345,0.00034453,2]
[426533448,1782555040000,-164.19746557,0.00035098,2]
[426533458,1782555040000,-316.49386196,0.00035431,2]
[426533447,1782555040000,-360.87557336,0.00035068,5]
[426533451,1782555040000,-337.91092132,0.00035107,2]
[426533450,1782555040000,-176.46863772,0.00035103,2]
[426533449,1782555040000,-179.88268787,0.00035102,2]
[426533452,1782555040000,-1362.7078461,0.00035107,2]
[426533457,1782555040000,-50.45508242,0.00035431,2]
[426533455,1782555040000,-165.5846739,0.00035272,2]
[426533454,1782555040000,-358.88058988,0.00035272,2]
[426533453,1782555040000,-170.1123759,0.00035107,2]
[426533459,1782555040000,-29.16386778,0.00035435,2]
[426533460,1782555040000,-294.5469687,0.00035435,2]
[426533461,1782555040000,-308.80576845,0.00035435,2]
[426533462,1782555040000,-351.3114111,0.00035435,2]
[426533463,1782555040000,-37.34647956,0.00035435,2]
[426533405,1782555040000,-188.2725318,0.00034433,2]
[426533436,1782555040000,-194.42194297,0.00034437,2]
[426533438,1782555040000,-486.28068573,0.00034452,2]
[426533456,1782555040000,-345.34049286,0.00035431,2]
[426533434,1782555040000,-177.98991768,0.00034437,2]
[426533439,1782555040000,-188.22253838,0.00034452,2]
[426533407,1782555040000,-166.26388468,0.00034433,2]
[426533409,1782555040000,-163.03717904,0.00034433,2]
[426533420,1782555040000,-156.47272917,0.00034433,2]
[426533418,1782555040000,-175.34483825,0.00034433,2]
[426533413,1782555040000,-153.88164483,0.00034433,2]
[426533414,1782555040000,-832.49468044,0.00034433,2]
[426533411,1782555040000,-162.42956885,0.00034433,2]
[426533415,1782555040000,-191.5619395,0.00034433,2]
[426533416,1782555040000,-163.14201579,0.00034433,2]
[426533412,1782555040000,-2750.86953187,0.00034433,2]
[426533419,1782555040000,-172.45608716,0.00034433,2]
[426533417,1782555040000,-1174.32040125,0.00034433,2]
[426533410,1782555040000,-164.66435764,0.00034433,2]
[426533424,1782555040000,-158.78372893,0.00034435,2]
[426533421,1782555040000,-193.21596328,0.00034435,2]
[426533422,1782555040000,-157.91094523,0.00034435,2]
[426533432,1782555040000,-179.31032642,0.00034437,2]
[426533425,1782555040000,-191.30624372,0.00034435,2]
[426533428,1782555040000,-155.13597369,0.00034437,2]
[426533423,1782555040000,-159.3171768,0.00034435,2]
[426533431,1782555040000,-172.97084493,0.00034437,2]
[426533427,1782555040000,-172.91042784,0.00034437,2]
[426533430,1782555040000,-189.4777055,0.00034437,2]
[426533429,1782555040000,-185.89538293,0.00034437,2]
[426533426,1782555040000,-158.86667594,0.00034437,2]
[426533433,1782555040000,-178.56795467,0.00034437,2]
[426533469,1782555043000,-446.0,0.00028439,2]
[426533471,1782555043000,-446.0,0.00031439,2]
[426533470,1782555043000,-365.01485148,0.00029,14]
[426533474,1782555043000,-276.23005007,0.00035435,2]
[426533473,1782555043000,-200.0,0.00035114,2]
[426533475,1782555043000,-55.12581051,0.00035435,2]
[426533472,1782555043000,-179.14,0.0003452,2]
[426533498,1782555047000,-383.123879,0.00035435,2]
[426533500,1782555047000,-978.60033437,0.00035435,2]
[426533499,1782555047000,-326.28403159,0.00035435,2]
[426533503,1782555047000,-344.91217433,0.00035435,2]
[426533504,1782555047000,-312.94545834,0.00035435,2]
[426533510,1782555047000,-177.71084352,0.00035438,2]
[426533511,1782555047000,-317.73335187,0.00035439,2]
[426533507,1782555047000,-318.63435359,0.00035438,2]
[426533509,1782555047000,-382.61248744,0.00035438,2]
[426533506,1782555047000,-315.82189045,0.00035438,2]
[426533505,1782555047000,-386.43192657,0.00035438,2]
[426533508,1782555047000,-317.56745786,0.00035438,2]
[426533514,1782555047000,-169.80071781,0.00035439,2]
[426533515,1782555047000,-155.5699529,0.00035439,2]
[426533497,1782555047000,-229.32081202,0.00035435,2]
[426533512,1782555047000,-345.82085568,0.00035439,2]
[426533494,1782555047000,-2475.78257868,0.00035435,2]
[426533481,1782555047000,-341.08821045,0.00035435,2]
[426533493,1782555047000,-324.8591377,0.00035435,2]
[426533520,1782555047000,-358.62065285,0.00035439,2]
[426533482,1782555047000,-300.07052567,0.00035435,2]
[426533488,1782555047000,-327.75487974,0.00035435,2]
[426533483,1782555047000,-339.90739608,0.00035435,2]
[426533485,1782555047000,-351.25297061,0.00035435,2]
[426533486,1782555047000,-332.51193814,0.00035435,2]
[426533484,1782555047000,-312.62655259,0.00035435,2]
[426533487,1782555047000,-376.5450636,0.00035435,2]
[426533489,1782555047000,-332.52776936,0.00035435,2]
[426533491,1782555047000,-326.07435809,0.00035435,2]
[426533496,1782555047000,-624.37101033,0.00035435,2]
[426533492,1782555047000,-329.32871528,0.00035435,2]
[426533502,1782555047000,-204.42210157,0.00035435,2]
[426533495,1782555047000,-307.76328967,0.00035435,2]
[426533490,1782555047000,-340.89728579,0.00035435,2]
[426533501,1782555047000,-350.68967651,0.00035435,2]
[426533521,1782555047000,-357.13590934,0.00035439,2]
[426533517,1782555047000,-170.29100276,0.00035439,2]
[426533548,1782555047000,-328.55766459,0.00036055,2]
[426533537,1782555047000,-538.32088481,0.00035937,2]
[426533541,1782555047000,-219.81557234,0.00035937,2]
[426533536,1782555047000,-192.03410877,0.00035762,2]
[426533540,1782555047000,-331.1693478,0.00035937,2]
[426533516,1782555047000,-371.79076586,0.00035439,2]
[426533538,1782555047000,-295.34545769,0.00035937,2]
[426533542,1782555047000,-192.88573477,0.00035937,2]
[426533545,1782555047000,-253.0870971,0.00035937,2]
[426533547,1782555047000,-1000.0,0.00036003,2]
[426533550,1782555047000,-359.76537574,0.00036055,2]
[426533549,1782555047000,-205.62389482,0.00036055,2]
[426533551,1782555047000,-443.60735286,0.00036055,2]
[426533546,1782555047000,-272.04322843,0.00035967,2]
[426533552,1782555047000,-352.93727545,0.00036055,2]
[426533553,1782555047000,-340.2247518,0.00036055,2]
[426533544,1782555047000,-222.32094933,0.00035937,2]
[426533543,1782555047000,-281.52258814,0.00035937,2]
[426533539,1782555047000,-212.80621099,0.00035937,2]
[426533534,1782555047000,-220.56588608,0.00035762,2]
[426533518,1782555047000,-378.955411,0.00035439,2]
[426533513,1782555047000,-310.27194738,0.00035439,2]
[426533535,1782555047000,-153.45372185,0.00035762,2]
[426533524,1782555047000,-227.02270208,0.00035439,2]
[426533525,1782555047000,-388.84388595,0.00035439,2]
[426533522,1782555047000,-355.97983536,0.00035439,2]
[426533523,1782555047000,-382.17066857,0.00035439,2]
[426533519,1782555047000,-345.94168986,0.00035439,2]
[426533529,1782555047000,-308.39076691,0.00035456,2]
[426533528,1782555047000,-645.67207197,0.00035455,2]
[426533533,1782555047000,-300.0,0.00035631,38]
[426533527,1782555047000,-972.56137146,0.00035455,2]
[426533531,1782555047000,-354.29534981,0.0003546,2]
[426533532,1782555047000,-382.95353487,0.00035461,2]
[426533530,1782555047000,-313.02365613,0.0003546,2]
[426533526,1782555047000,-1296.61804227,0.00035455,2]
[426533605,1782555048000,-533.96975303,0.00036108,2]
[426533596,1782555048000,-156.68325183,0.00036108,2]
[426533600,1782555048000,-557.68614878,0.00036108,2]
[426533594,1782555048000,-476.60002781,0.00036108,2]
[426533590,1782555048000,-476.35118679,0.00036106,2]
[426533589,1782555048000,-477.95153039,0.00036106,2]
[426533591,1782555048000,-573.91873116,0.00036106,2]
[426533588,1782555048000,-473.73283568,0.00036106,2]
[426533586,1782555048000,-469.41818752,0.00036103,2]
[426533587,1782555048000,-579.64788985,0.00036106,2]
[426533582,1782555048000,-526.03451476,0.00036103,2]
[426533592,1782555048000,-355.42168705,0.00036106,2]
[426533595,1782555048000,-518.73128352,0.00036108,2]
[426533612,1782555048000,-462.58615036,0.00036125,2]
[426533601,1782555048000,-568.43311649,0.00036108,2]
[426533599,1782555048000,-311.13990579,0.00036108,2]
[426533598,1782555048000,-339.60143562,0.00036108,2]
[426533603,1782555048000,-537.93097927,0.00036108,2]
[426533604,1782555048000,-535.70386401,0.00036108,2]
[426533602,1782555048000,-518.9125348,0.00036108,2]
[426533617,1782555048000,-306.90744371,0.00036203,2]
[426533608,1782555048000,-583.26582892,0.00036108,2]
[426533609,1782555048000,-1944.92706341,0.00036124,2]
[426533607,1782555048000,-454.04540416,0.00036108,2]
[426533610,1782555048000,-1458.84205719,0.00036124,2]
[426533616,1782555048000,-441.13177215,0.00036203,2]
[426533585,1782555048000,-517.36826149,0.00036103,2]
[426533597,1782555048000,-465.40792107,0.00036108,2]
[426533584,1782555048000,-152.58819901,0.00036103,2]
[426533559,1782555048000,-463.20865268,0.00036103,2]
[426533583,1782555048000,-408.84420313,0.00036103,2]
[426533555,1782555048000,-470.53509353,0.00036055,2]
[426533556,1782555048000,-593.69336292,0.00036099,2]
[426533554,1782555048000,-1192.36936534,0.00036055,2]
[426533558,1782555048000,-485.56625473,0.00036103,2]
[426533568,1782555048000,-564.8175954,0.00036103,2]
[426533557,1782555048000,-474.74079294,0.00036099,2]
[426533560,1782555048000,-526.96711665,0.00036103,2]
[426533563,1782555048000,-450.1057885,0.00036103,2]
[426533562,1782555048000,-594.32103144,0.00036103,2]
[426533561,1782555048000,-470.36479444,0.00036103,2]
[426533564,1782555048000,-468.93982889,0.00036103,2]
[426533566,1782555048000,-526.87945592,0.00036103,2]
[426533567,1782555048000,-498.76790721,0.00036103,2]
[426533565,1782555048000,-509.86109413,0.00036103,2]
[426533569,1782555048000,-491.63231961,0.00036103,2]
[426533571,1782555048000,-511.34592869,0.00036103,2]
[426533572,1782555048000,-489.11153713,0.00036103,2]
[426533579,1782555048000,-574.68581851,0.00036103,2]
[426533573,1782555048000,-493.99307293,0.00036103,2]
[426533578,1782555048000,-458.64162404,0.00036103,2]
[426533575,1782555048000,-2200.6956255,0.00036103,2]
[426533576,1782555048000,-461.6449345,0.00036103,2]
[426533577,1782555048000,-416.24734022,0.00036103,2]
[426533574,1782555048000,-487.28870655,0.00036103,2]
[426533570,1782555048000,-498.79165404,0.00036103,2]
[426533580,1782555048000,-489.42604738,0.00036103,2]
[426533581,1782555048000,-782.8802675,0.00036103,2]
[426533593,1782555048000,-340.58200551,0.00036106,2]
[426533614,1782555048000,-531.44302472,0.00036128,2]
[426533606,1782555048000,-573.25600286,0.00036108,2]
[426533615,1782555048000,-574.43030231,0.0003613,2]
[426533648,1782555048000,-665.02387628,0.00036549,2]
[426533651,1782555048000,-665.05553872,0.00036549,2]
[426533652,1782555048000,-681.79457159,0.00036549,2]
[426533650,1782555048000,-655.50975949,0.00036549,2]
[426533649,1782555048000,-753.09012721,0.00036549,2]
[426533646,1782555048000,-679.81479217,0.00036549,2]
[426533647,1782555048000,-702.50594123,0.00036549,2]
[426533666,1782555048000,-154.91283193,0.00036549,2]
[426533656,1782555048000,-155.29199127,0.00036549,2]
[426533667,1782555048000,-766.24775801,0.00036549,2]
[426533668,1782555048000,-178.24205155,0.00036549,2]
[426533658,1782555048000,-1925.60867231,0.00036549,2]
[426533655,1782555048000,-649.7182754,0.00036549,2]
[426533654,1782555048000,-658.65743057,0.00036549,2]
[426533657,1782555048000,-160.1943189,0.00036549,2]
[426533665,1782555048000,-432.57410893,0.00036549,2]
[426533660,1782555048000,-615.52657934,0.00036549,2]
[426533659,1782555048000,-153.83476447,0.00036549,2]
[426533662,1782555048000,-176.65523725,0.00036549,2]
[426533663,1782555048000,-420.40205563,0.00036549,2]
[426533664,1782555048000,-178.8512218,0.00036549,2]
[426533669,1782555048000,-652.56806318,0.00036549,2]
[426533670,1782555048000,-587.16020062,0.00036549,2]
[426533671,1782555048000,-701.37935301,0.00036549,2]
[426533674,1782555048000,-689.82434865,0.00036549,2]
[426533676,1782555048000,-625.89091669,0.00036549,2]
[426533673,1782555048000,-305.17639803,0.00036549,2]
[426533611,1782555048000,-968.50810796,0.00036124,2]
[426533661,1782555048000,-687.96243605,0.00036549,2]
[426533644,1782555048000,-600.14105134,0.00036549,2]
[426533672,1782555048000,-613.2663047,0.00036549,2]
[426533643,1782555048000,-792.42804192,0.00036549,2]
[426533653,1782555048000,-652.14871617,0.00036549,2]
[426533613,1782555048000,-469.53548419,0.00036128,2]
[426533623,1782555048000,-563.04517628,0.0003638,2]
[426533621,1782555048000,-496.7540217,0.0003638,2]
[426533618,1782555048000,-460.42540365,0.00036203,2]
[426533622,1782555048000,-385.77146954,0.0003638,2]
[426533619,1782555048000,-717.76117975,0.0003638,2]
[426533629,1782555048000,-492.83649689,0.00036499,2]
[426533620,1782555048000,-590.69091538,0.0003638,2]
[426533624,1782555048000,-444.64189867,0.0003638,2]
[426533625,1782555048000,-425.61242199,0.0003638,2]
[426533626,1782555048000,-439.63114469,0.0003638,2]
[426533627,1782555048000,-506.17419421,0.0003638,2]
[426533628,1782555048000,-544.08645685,0.0003641,2]
[426533675,1782555048000,-208.12367011,0.00036549,2]
[426533641,1782555048000,-702.62282219,0.00036549,2]
[426533645,1782555048000,-625.25310519,0.00036549,2]
[426533631,1782555048000,-539.64806361,0.00036499,2]
[426533639,1782555048000,-647.42167297,0.00036548,2]
[426533635,1782555048000,-1022.03088457,0.00036499,2]
[426533638,1782555048000,-632.98772391,0.00036544,2]
[426533640,1782555048000,-617.61153691,0.00036549,2]
[426533642,1782555048000,-627.15305925,0.00036549,2]
[426533637,1782555048000,-791.59115056,0.00036544,2]
[426533634,1782555048000,-510.3371277,0.00036499,2]
[426533636,1782555048000,-627.38012471,0.00036499,2]
[426533633,1782555048000,-529.40591317,0.00036499,2]
[426533630,1782555048000,-411.24778963,0.00036499,2]
[426533632,1782555048000,-221.80367643,0.00036499,2]
[426533699,1782555049000,-1291.34414395,0.0003657,2]
[426533716,1782555049000,-849.76849021,0.00036994,2]
[426533706,1782555049000,-602.0,0.000368,120]
[426533705,1782555049000,-765.90706975,0.00036576,2]
[426533717,1782555049000,-878.13242653,0.00036994,2]
[426533715,1782555049000,-781.56638148,0.00036994,2]
[426533707,1782555049000,-851.69240381,0.00036944,2]
[426533708,1782555049000,-784.22515589,0.00036944,2]
[426533711,1782555049000,-809.27709121,0.00036994,2]
[426533709,1782555049000,-989.4889382,0.0003699,2]
[426533712,1782555049000,-772.01442113,0.00036994,2]
[426533723,1782555049000,-823.32178821,0.00036994,2]
[426533713,1782555049000,-878.27852774,0.00036994,2]
[426533714,1782555049000,-783.94132407,0.00036994,2]
[426533718,1782555049000,-941.36265901,0.00036994,2]
[426533720,1782555049000,-831.3194234,0.00036994,2]
[426533721,1782555049000,-852.24321449,0.00036994,2]
[426533722,1782555049000,-815.18589521,0.00036994,2]
[426533719,1782555049000,-819.38719936,0.00036994,2]
[426533726,1782555049000,-769.40822417,0.00036994,2]
[426533700,1782555049000,-616.78153381,0.00036571,2]
[426533710,1782555049000,-791.23465489,0.0003699,2]
[426533696,1782555049000,-777.68777189,0.00036553,2]
[426533689,1782555049000,-743.58153171,0.00036553,2]
[426533702,1782555049000,-626.04731226,0.00036574,2]
[426533725,1782555049000,-1650.52171912,0.00036994,2]
[426533680,1782555049000,-637.26870719,0.00036552,2]
[426533677,1782555049000,-198.15319717,0.00036549,2]
[426533679,1782555049000,-631.6437809,0.00036552,2]
[426533678,1782555049000,-772.86385314,0.00036552,2]
[426533692,1782555049000,-717.2413057,0.00036553,2]
[426533682,1782555049000,-765.22497488,0.00036552,2]
[426533684,1782555049000,-681.06810625,0.00036552,2]
[426533685,1782555049000,-635.46670375,0.00036553,2]
[426533681,1782555049000,-635.13491572,0.00036552,2]
[426533683,1782555049000,-533.13253057,0.00036552,2]
[426533687,1782555049000,-313.36650365,0.00036553,2]
[426533688,1782555049000,-620.54389476,0.00036553,2]
[426533686,1782555049000,-691.64171136,0.00036553,2]
[426533690,1782555049000,-757.91082199,0.00036553,2]
[426533691,1782555049000,-691.88337973,0.00036553,2]
[426533693,1782555049000,-714.27181869,0.00036553,2]
[426533694,1782555049000,-711.95967071,0.00036553,2]
[426533704,1782555049000,-254.17504023,0.00036574,2]
[426533695,1782555049000,-764.34133714,0.00036553,2]
[426533697,1782555049000,-2593.23608454,0.0003657,2]
[426533701,1782555049000,-274.42915098,0.00036574,2]
[426533703,1782555049000,-708.59069962,0.00036574,2]
[426533698,1782555049000,-1945.12274291,0.0003657,2]
[426533724,1782555049000,-812.14784425,0.00036994,2]
[426533741,1782555049000,-947.38852749,0.00036999,2]
[426533727,1782555049000,-957.80969751,0.00036994,2]
[426533757,1782555049000,-941.07018707,0.00037611,2]
[426533758,1782555049000,-949.48158587,0.00037658,2]